[Event "Commonwealth CC-Open 2024"]
[Site "Malacca"]
[Date "2024.02.21"]
[Round "2.1"]
[White "Chan, Peng Kong"]
[Black "Sethuraman, S.P."]
[Result "0-1"]
[ECO "D02"]
[WhiteElo "2125"]
[BlackElo "2594"]
[Annotator "TA"]
[PlyCount "68"]
[EventDate "2024.02.21"]
[EventCountry "MAS"]
[SourceTitle "playchess.com"]
[Source "ChessBase"]
[SourceQuality "1"]
[TimeControl "5400+30"]

{[%evp 11,68,18,25,26,45,0,0,0,0,-14,-8,-12,0,-10,0,0,0,-14,-8,-14,-18,-20,-27,-133,-138,-138,-136,-134,-128,-123,-141,-160,-159,-164,-155,-383,-395,-383,-375,-445,-399,-399,-445,-423,-425,-468,-466,-489,-472,-428,-448,-499,-499,-488,-487,-488,-482,-447,-436]} 1. Nf3 {[%emt 0:03:03]} d5 {[%emt 0:00:35]} 2. g3 {[%emt 0:00:13]} Nc6 {[%emt 0:01:47]} 3. d4 {[%emt 0:00:54]} Bf5 {[%emt 0:00:06]} 4. Bg2 {[%emt 0:00:18]} e6 {[%emt 0:00:29]} 5. O-O {[%emt 0:00:10]} Nb4 {[%emt 0:02:10]} 6. Na3 {[%emt 0:01:51]} Be7 {[%emt 0:00:26]} 7. c3 {[%emt 0:01:22]} Nc6 {[%emt 0:00:12]} 8. b3 {[%emt 0:01:10]} h5 {[%emt 0:01:45]} 9. h4 {[%emt 0:04:16] The position is equal.} Nf6 {[%emt 0:00:24]} 10. Bb2 {[%emt 0:09:55]} Ne4 {[%emt 0:03:45] Threatening ...g5.} 11. c4 {[%emt 0:01:36]} g5 {[%emt 0:02:24]} 12. hxg5 {[%emt 0:00:19]} Bxg5 {[%emt 0:01:27]} 13. Nxg5 {[%emt 0:05:10]} Qxg5 {[%emt 0:00:11]} 14. Qc1 $1 {[%emt 0:00:05]} Qg6 {[%emt 0:06:06] White must now prevent ...h4.} 15. Qf4 {[%emt 0:03:04] And now Bxe4 would win.} O-O-O {[%emt 0:00:15][%cal Oh5h4]} 16. Nb5 {[%emt 0:00:15]} Rd7 $36 {[%emt 0:00:21][%mdl 2048] Black is more active.} 17. Rfd1 {[%emt 0:14:18] [#]} (17. Bxe4 $11 Bxe4 18. f3) 17... h4 $1 $17 {[%emt 0:03:35][%mdl 512]} 18. g4 {[%emt 0:12:51]} Bxg4 {[%emt 0:01:03]} 19. Bxe4 {[%emt 0:01:20]} Qxe4 {[%emt 0:02:30]} (19... dxe4 20. Kh2 $17) 20. Qxe4 {[%emt 0:01:24]} dxe4 {[%emt 0:00:04]} 21. d5 {[%emt 0:06:08]} Rg8 {[%emt 0:00:41]} 22. Kh2 {[%emt 0:00:04]} exd5 {[%emt 0:01:09]} (22... Bxe2 23. Re1 Bf3 24. dxc6 Rg2+ (24... bxc6 25. Nd4 $11) 25. Kh3 bxc6 (25... Rd2 26. Bd4 $16) 26. Nd4 Rxf2 27. Nxf3 Rxf3+ (27... Rxb2 28. Rxe4 Rd3 29. Rf1 $14) 28. Kxh4 $15) 23. cxd5 $2 {[%emt 0:00:18] Now White is beyond hope.} (23. Rxd5 $17 {was worth a try.} Bxe2 24. Nd4 Nxd4 25. Bxd4) 23... Bxe2 $19 {[%emt 0:05:04]} 24. Rg1 {[%emt 0:12:36]} Rxg1 {[%emt 0:00:22]} (24... Rxd5 $2 {perishes.} 25. Rxg8+ Kd7 26. Nc3 $18) 25. Rxg1 {[%emt 0:00:25]} Rxd5 {[%emt 0:01:14]} 26. Nc3 {[%emt 0:01:15]} Rd2 {[%emt 0:00:05]} 27. Bc1 {[%emt 0:00:07] Black is clearly winning.} Rc2 {[%emt 0:00:04]} 28. Nxe4 {[%emt 0:00:29]} Bd3 {[%emt 0:00:41]} (28... Rxa2 29. Rg8+ Kd7 30. Nc5+ Ke7 31. Bg5+ Kd6 32. Ne4+ Kd7 33. Nc5+ Kd6 34. Nxb7+ Kd5 35. Bxh4 $17) 29. Rg8+ {[%emt 0:04:45] [#]} Kd7 $1 {[%emt 0:00:07]} 30. Nf6+ {[%emt 0:00:06]} Ke6 {[%emt 0:00:07]} 31. Bg5 {[%emt 0:00:25]} Rxf2+ {[%emt 0:00:17]} (31... Rxa2 32. Bxh4 Ne7 33. Rd8 $19) 32. Kh3 {[%emt 0:00:18]} Rxf6 {[%emt 0:01:31]} 33. Bxf6 {[%emt 0:00:21]} Kxf6 {[%emt 0:00:04]} 34. Kxh4 {[%emt 0:00:07]} Ke5 {[%emt 0:01:11] Weighted Error Value: White=0.25 (precise) /Black=0.01 (flawless) .  Loses game:     	White=1     	---        Mistake:       	White=1     	---        Inaccurate:     	White=1     	---        OK:         	White=12    	Black=19     Best:        	White=1     	Black=1      Strong:       	White=1     	Black=1} 0-1

[Event "Commonwealth CC-Open 2024"]
[Site "Malacca"]
[Date "2024.02.21"]
[Round "2.2"]
[White "Vaibhav, Suri"]
[Black "Varshini V Kundar"]
[Result "1-0"]
[ECO "C02"]
[WhiteElo "2596"]
[BlackElo "1096"]
[Annotator "RC"]
[PlyCount "101"]
[EventDate "2024.02.21"]
[EventCountry "MAS"]
[SourceTitle "playchess.com"]
[Source "ChessBase"]
[SourceQuality "1"]
[TimeControl "5400+30"]

1. e4 {[%emt 0:00:26]} e6 {[%emt 0:00:54]} 2. d4 {[%emt 0:00:18]} d5 {[%emt 0:00:28]} 3. e5 {[%emt 0:03:06]} c5 {[%emt 0:00:33]} 4. c3 {[%emt 0:00:04]} Nc6 {[%emt 0:00:47]} 5. Nf3 {[%emt 0:00:09]} Qb6 {[%emt 0:00:30]} 6. a3 {[%emt 0:00:20]} c4 {[%emt 0:02:24]} 7. Nbd2 {[%emt 0:00:07]} Na5 {[%emt 0:02:19]} 8. Rb1 {[%emt 0:00:19]} Bd7 {[%emt 0:00:57]} 9. h4 {[%emt 0:00:03]} Ne7 {[%emt 0:06:13]} 10. h5 {[%emt 0:02:16]} h6 {[%emt 0:00:59]} 11. Rh3 {[%emt 0:01:06]} Nc8 {[%emt 0:03:11]} 12. b4 {[%emt 0:29:01]} cxb3 {[%emt 0:05:05]} 13. Nxb3 {[%emt 0:00:06]} Nxb3 {[%emt 0:05:49]} 14. Rxb3 {[%emt 0:00:17]} Qc7 {[%emt 0:01:31]} 15. Nd2 {[%emt 0:00:45]} Nb6 {[%emt 0:08:41]} 16. Bb5 {[%emt 0:09:44]} Rc8 {[%emt 0:07:38]} 17. Rb1 {[%emt 0:06:55]} Bxb5 {[%emt 0:06:10]} 18. Rxb5 {[%emt 0:00:03]} Qc6 {[%emt 0:00:17]} 19. Qb3 {[%emt 0:01:27]} Nc4 {[%emt 0:07:39]} 20. Nxc4 {[%emt 0:02:16]} dxc4 {[%emt 0:00:16]} 21. Qb1 {[%emt 0:00:05]} b6 {[%emt 0:10:31]} 22. Rg3 {[%emt 0:05:08]} Rb8 {[%emt 0:11:48]} 23. a4 {[%emt 0:01:13]} a6 {[%emt 0:03:46]} 24. Rb2 {[%emt 0:00:02]} Qxa4 {[%emt 0:06:28]} 25. Rxb6 {[%emt 0:00:33]} Rxb6 {[%emt 0:00:18]} 26. Qxb6 {[%emt 0:00:02]} Qb5 {[%emt 0:00:30]} 27. Qc7 {[%emt 0:02:58]} Be7 {[%emt 0:05:59]} 28. Ke2 {[%emt 0:00:30]} Qa4 {[%emt 0:02:17]} 29. Bd2 {[%emt 0:01:13]} Bd8 {[%emt 0:00:30]} 30. Qc5 {[%emt 0:01:15]} Rg8 {[%emt 0:00:29]} 31. d5 {[%emt 0:06:05]} Qb5 {[%emt 0:00:31]} 32. Qxb5+ {[%emt 0:07:42]} axb5 {[%emt 0:00:02]} 33. dxe6 {[%emt 0:00:44]} fxe6 {[%emt 0:00:03]} 34. Bxh6 {[%emt 0:00:03]} Rh8 {[%emt 0:00:38]} 35. Bf4 {[%emt 0:03:35]} Rxh5 {[%emt 0:00:41]} 36. Rxg7 {[%emt 0:00:04]} Be7 {[%emt 0:01:05]} 37. g4 {[%emt 0:03:26]} Rh3 {[%emt 0:00:21]} 38. Be3 {[%emt 0:16:04]} Rh1 {[%emt 0:00:38]} 39. Rg6 {[%emt 0:00:00]} Kf7 {[%emt 0:00:29]} 40. Rh6 {[%emt 0:00:00]} Rb1 {[%emt 0:00:30]} 41. Rh7+ {[%emt 0:00:00]} Ke8 {[%emt 0:00:24]} 42. f4 {[%emt 0:00:00]} b4 {[%emt 0:00:21]} 43. cxb4 {[%emt 0:00:00]} Bxb4 {[%emt 0:00:02]} 44. f5 {[%emt 0:00:00]} c3 {[%emt 0:01:06]} 45. f6 {[%emt 0:00:00]} c2 {[%emt 0:00:20]} 46. Rc7 {[%emt 0:00:00]} Re1+ {[%emt 0:00:47]} 47. Kd3 {[%emt 0:00:00]} Rd1+ {[%emt 0:00:33]} 48. Kxc2 {[%emt 0:00:00]} Rd5 {[%emt 0:00:20]} 49. g5 {[%emt 0:00:00]} Rxe5 {[%emt 0:00:38]} 50. g6 {[%emt 0:00:00]} Rf5 {[%emt 0:00:32]} 51. g7 {[%emt 0:00:00]} 1-0

[Event "Commonwealth CC-Open 2024"]
[Site "Malacca"]
[Date "2024.02.21"]
[Round "2.3"]
[White "Muhammed, Shuaau"]
[Black "Tin, Jingyao"]
[Result "1/2-1/2"]
[ECO "B48"]
[WhiteElo "2093"]
[BlackElo "2563"]
[Annotator "TA"]
[PlyCount "43"]
[EventDate "2024.02.21"]
[EventCountry "MAS"]
[SourceTitle "playchess.com"]
[Source "ChessBase"]
[SourceQuality "1"]
[TimeControl "5400+30"]

{[%evp 11,43,31,50,28,40,35,25,38,42,32,56,31,39,32,43,35,43,45,35,34,50,38,35,0,2,0,27,15,30,33,28,21,30,22]} 1. e4 {[%emt 0:11:38]} c5 {[%emt 0:00:09]} 2. Nf3 {[%emt 0:00:05]} e6 {[%emt 0:00:10]} 3. d4 {[%emt 0:00:22]} cxd4 {[%emt 0:00:05]} 4. Nxd4 {[%emt 0:00:02]} Nc6 {[%emt 0:00:05]} 5. Nc3 {[%emt 0:01:36]} Qc7 {[%emt 0:00:07]} 6. Be3 {[%emt 0:03:28]} a6 {[%emt 0:00:09]} 7. Qf3 {[%emt 0:01:32]} b5 {[%emt 0:00:07][%cal Bb7b5,Bb5b4][%mdl 32]} 8. Nxc6 {[%emt 0:03:38]} Qxc6 {[%emt 0:00:12]} 9. Bd3 {[%emt 0:01:08]} b4 {[%emt 0:03:11]} 10. Ne2 {[%emt 0:02:54]} Bb7 {[%emt 0:01:09]} 11. Qg3 {[%emt 0:02:25]} Rc8 {[%emt 0:07:56]} 12. O-O {[%emt 0:04:49]} Nf6 {[%emt 0:03:01][%cal Bg8f6,Bf6d5,Bd5b4][%mdl 32]} 13. f3 {[%emt 0:02:05]} Bc5 {[%emt 1:20:39]} 14. Bxc5 {[%emt 0:04:22]} Qxc5+ {[%emt 0:00:00]} 15. Qf2 {[%emt 0:01:01]} Qxf2+ {[%emt 0:00:00]} 16. Kxf2 {[%emt 0:07:27]} d5 {[%emt 0:00:00]} 17. exd5 {[%emt 0:10:38]} Nxd5 {[%emt 0:02:00]} 18. Rfc1 {[%emt 0:04:57]} Kd7 {[%emt 0:00:00]} 19. a3 {[%emt 0:05:00]} bxa3 {[%emt 0:00:00]} 20. Rxa3 {[%emt 0:01:55]} Nb4 {[%emt 0:00:00]} 21. Rd1 {[%emt 0:00:59][%csl LRa6,LRh7]} Ke7 {[%emt 0:00:00][%cal Oh8d8]} 22. c3 {[%emt 0:00:07] Weighted Error Value: White=0.07 (flawless) /Black=0.07 (flawless) .  Inaccurate:     	White=1     	Black=1      OK:         	White=7     	Black=7} 1/2-1/2

[Event "Commonwealth CC-Open 2024"]
[Site "Malacca"]
[Date "2024.02.21"]
[Round "2.4"]
[White "Mitrabha, Guha"]
[Black "Nguyen, Thu Giang"]
[Result "1-0"]
[ECO "A28"]
[WhiteElo "2504"]
[BlackElo "2072"]
[Annotator "TA"]
[PlyCount "63"]
[EventDate "2024.02.21"]
[EventCountry "MAS"]
[SourceTitle "playchess.com"]
[Source "ChessBase"]
[SourceQuality "1"]
[TimeControl "5400+30"]

{[%evp 13,63,9,2,-2,7,0,37,32,34,39,32,38,43,39,37,49,57,65,153,46,131,150,152,152,250,243,250,246,322,326,1091,1075,29983,29957,29968,29964,2279,658,648,650,610,643,616,637,576,554,512,495,564,532,835,850]} 1. c4 {[%emt 0:17:27]} e5 {[%emt 0:00:42]} 2. Nc3 {[%emt 0:00:07]} Nf6 {[%emt 0:00:13]} 3. Nf3 {[%emt 0:00:08]} Nc6 {[%emt 0:01:33]} 4. e4 {[%emt 0:00:07]} Bc5 {[%emt 0:01:38]} 5. Nxe5 {[%emt 0:00:22]} Nxe5 {[%emt 0:01:27]} 6. d4 {[%emt 0:00:02]} Bb4 {[%emt 0:01:08]} 7. dxe5 {[%emt 0:00:02]} Nxe4 {[%emt 0:00:08]} 8. Qf3 {[%emt 0:00:04]} Nxc3 {[%emt 0:01:18]} (8... Qh4 {feels hotter.} 9. Be2 Nxc3 10. bxc3 Qd4) 9. bxc3 {[%emt 0:00:02]} Bc5 {[%emt 0:00:15]} 10. Qg3 {[%emt 0:02:21] White is slightly better.} Kf8 {[%emt 0:02:39]} 11. Bf4 $40 {[%emt 0:03:31][%mdl 128] White mounts an attack.} d6 {[%emt 0:01:19]} 12. Bd3 {[%emt 0:04:50]} h5 {[%emt 0:06:08][%cal Bh7h5,Bh5h4][%mdl 32]} 13. O-O {[%emt 0:07:07]} h4 {[%emt 0:20:44]} 14. Qf3 {[%emt 0:00:05]} g5 {[%emt 0:11:44]} 15. Be3 {[%emt 0:00:46]} Rh6 {[%emt 0:04:49] Dodges Bg6. White now steadily converts the win.} ({Black should play} 15... Bxe3 $14 16. fxe3 Qe7) 16. Rfe1 {[%emt 0:01:27]} (16. Bxc5 $1 $16 dxc5 17. h3) 16... Kg8 {[%emt 0:14:29]} (16... h3 $14) 17. Rad1 $16 {[%emt 0:01:51] Strongly threatening Bxc5. White is much more active.} Bxe3 {[%emt 0:07:53]} 18. Rxe3 {[%emt 0:01:07]} (18. Qxe3 Qe7 $14) 18... Rb8 {[%emt 0:02:12] [#]} (18... Kg7 $16 19. Bc2 Be6 20. exd6 (20. Qxb7 Bxc4 21. Qe4 Be6 $14) 20... cxd6) 19. exd6 $1 $18 {[%emt 0:01:28]} cxd6 {[%emt 0:02:02] [#]} 20. c5 {[%emt 0:00:53][%mdl 512]} Bd7 {[%emt 0:06:02]} (20... Qf6 21. Re8+) 21. Bc4 $1 {[%emt 0:01:06][%csl LRd6,LRf7]} Rf6 {[%emt 0:03:32]} (21... Qf6 22. Qe2 (22. Rxd6 Qxf3 23. Rxf3 Rxd6 $18) 22... d5 23. Rxd5 (23. Bxd5 g4 $18) 23... Be6) 22. Qh5 {[%emt 0:02:24]} Ba4 {[%emt 0:05:06]} 23. Qxg5+ {[%emt 0:00:38]} Kf8 {[%emt 0:00:07][%cal Bg8f8,Bf8g7,Bg7f6,Bf6g5,Bg5h6][%mdl 32] [#]} 24. Qxh4 $1 {[%emt 0:00:36][%cal Rh4h8]} Kg7 {[%emt 0:00:41]} 25. Rg3+ {[%emt 0:00:22]} (25. Rh3 $142 Bc2 26. Rd4) 25... Rg6 {[%emt 0:00:14]} 26. Qd4+ {[%emt 0:00:12]} (26. Rxd6 $2 {perishes.} Qxh4 27. Rd4 Qh5 $19) 26... Qf6 {[%emt 0:02:09]} 27. Qxf6+ {[%emt 0:00:07]} Kxf6 {[%emt 0:00:04]} 28. Rf3+ {[%emt 0:00:07][%cal Bg3f3,Bf3f7,Bf7f6][%mdl 32]} Kg5 {[%emt 0:00:41]} 29. Rd5+ {[%emt 0:00:27]} Kh6 {[%emt 0:00:17]} 30. Rxd6 {[%emt 0:00:09]} Bc6 {[%emt 0:00:54]} 31. Rxf7 {[%emt 0:00:55]} Rbg8 {[%emt 0:00:21]} 32. Rff6 {[%emt 0:00:10] Weighted Error Value: White=0.23 (precise) /Black=0.57.  Mistake:       	White=1     	Black=4      Inaccurate:     	---       	Black=4      OK:         	White=9     	Black=4      Best:        	White=1     	---        Strong:       	White=1     	---        Brilliant:      	White=1     	---} 1-0

[Event "Commonwealth CC-Open 2024"]
[Site "Malacca"]
[Date "2024.02.21"]
[Round "2.5"]
[White "Mahmood Shah, Mukhriez Shah"]
[Black "Vignesh N R"]
[Result "0-1"]
[ECO "C55"]
[WhiteElo "2007"]
[BlackElo "2517"]
[Annotator "TA"]
[PlyCount "73"]
[EventDate "2024.02.21"]
[EventCountry "MAS"]
[SourceTitle "playchess.com"]
[Source "ChessBase"]
[SourceQuality "1"]
[TimeControl "5400+30"]

{[%evp 16,73,48,14,2,-10,-30,-23,-4,-29,-23,-24,-24,-25,-12,-23,-13,-6,4,0,18,0,15,23,12,12,20,10,4,15,51,0,76,11,11,7,130,135,119,113,96,21,32,25,37,-20,115,137,126,126,137,119,141,75,81,-8,0,0,40,-50]} 1. e4 {[%emt 0:00:06]} e5 {[%emt 0:04:17]} 2. Nf3 {[%emt 0:00:17]} Nc6 {[%emt 0:00:06]} 3. Bc4 {[%emt 0:00:19]} Nf6 {[%emt 0:00:15]} 4. d3 {[%emt 0:01:45]} h6 {[%emt 0:01:36]} 5. O-O {[%emt 0:00:45]} d6 {[%emt 0:00:52]} 6. c3 {[%emt 0:01:21]} g6 {[%emt 0:00:36]} 7. Re1 {[%emt 0:02:43]} Bg7 {[%emt 0:00:13]} 8. Nbd2 {[%emt 0:01:47]} O-O {[%emt 0:00:32]} 9. Nf1 {[%emt 0:00:12]} Na5 {[%emt 0:05:30]} 10. Bb3 {[%emt 0:00:45]} Nxb3 {[%emt 0:00:24]} 11. axb3 {[%emt 0:00:05]} Re8 {[%emt 0:01:18] Black has an edge.} 12. Be3 {[%emt 0:02:10]} d5 {[%emt 0:01:31]} 13. Ng3 {[%emt 0:02:39]} b6 {[%emt 0:01:13]} 14. b4 {[%emt 0:00:54]} Bb7 {[%emt 0:02:11]} 15. Qc2 {[%emt 0:00:20]} Qd6 {[%emt 0:01:40]} 16. d4 {[%emt 0:05:13]} Nxe4 {[%emt 0:04:44]} 17. Nxe5 {[%emt 0:03:05]} h5 {[%emt 0:10:54]} 18. Nd3 {[%emt 0:11:00]} h4 {[%emt 0:01:20]} 19. Nf1 {[%emt 0:00:46]} h3 {[%emt 0:01:55]} 20. f3 {[%emt 0:01:43]} hxg2 {[%emt 0:01:47]} 21. Qxg2 {[%emt 0:00:13]} Nf6 {[%emt 0:00:27]} 22. Bf4 {[%emt 0:00:18]} Qd7 {[%emt 0:00:43]} 23. Ng3 {[%emt 0:03:06]} (23. Rxe8+ $14 Nxe8 24. h4) 23... Qb5 {[%emt 0:05:22]} (23... a5 $11) 24. Qd2 {[%emt 0:07:46]} (24. Ne5 $16) 24... Rxe1+ $11 {[%emt 0:02:02]} 25. Rxe1 {[%emt 0:00:10]} Rd8 {[%emt 0:51:32]} (25... a5 $11) 26. Ne5 $16 Re8 {[%emt 0:00:00]} 27. Bh6 {[%emt 0:01:21] [#] aiming for Bxg7.} Bh8 {[%emt 0:00:00]} 28. Qf4 {[%emt 0:01:46]} (28. h4 $16) 28... Re6 $11 {[%emt 0:00:00]} 29. h4 {[%emt 0:05:28][%cal Oh4h5]} Qe8 {[%emt 0:00:00]} 30. Kf2 {[%emt 0:06:42]} (30. Ra1 $14) 30... Nd7 {[%emt 0:00:00] [#]} (30... Ne4+ $11 {keeps the balance.} 31. Kg2 (31. fxe4 $2 Rf6 $19) (31. Nxe4 dxe4 32. h5 c5 $11) 31... Nxg3 32. Qxg3 Kh7) 31. Nxd7 $1 $16 {[%emt 0:00:34]} ({Much worse is} 31. Nd3 $6 Ba6 32. Rd1 (32. Rxe6 Qxe6 33. Ne1 c5 $15) 32... c5 $11) 31... Qxd7 {[%emt 0:00:00] Black is weak on the dark squares} (31... Rxe1 $2 {perishes.} 32. Nf6+ Bxf6 33. Qxf6 $18) 32. Rxe6 {[%emt 0:00:45]} Qxe6 {[%emt 0:00:00]} 33. Qxc7 {[%emt 0:03:04]} Qh3 {[%emt 0:00:00]} 34. Bg5 {[%emt 0:16:21]} (34. Qxb7 $142 Qh2+ 35. Kf1 Qxg3 36. Qxd5) 34... Qh2+ {[%emt 0:00:00]} 35. Ke1 {[%emt 0:05:50]} (35. Ke3 $16) 35... Qg1+ {[%emt 0:00:00]} 36. Kd2 {[%emt 0:01:06]} Qf2+ {[%emt 0:00:00]} 37. Kd1 {[%emt 0:00:00] Weighted Error Value: White=0.24 (precise) /Black=0.25 (precise) .  Mistake:       	White=7     	Black=3      Inaccurate:     	---       	Black=2      OK:         	White=9     	Black=11     Best:        	White=3     	---        Strong:       	White=1     	---} (37. Ne2 $14 Ba6 38. Qb8+ Kh7 39. Qe8) 0-1

[Event "Commonwealth CC-Open 2024"]
[Site "Malacca"]
[Date "2024.02.21"]
[Round "2.6"]
[White "Tan, Wei Hom Isaac"]
[Black "Tippa, Aswath Srisai"]
[Result "0-1"]
[ECO "B06"]
[WhiteElo "1543"]
[BlackElo "1411"]
[Annotator "NA RC"]
[PlyCount "72"]
[EventDate "2024.02.21"]
[EventCountry "MAS"]
[SourceTitle "playchess.com"]
[Source "ChessBase"]
[SourceQuality "1"]
[TimeControl "5400+30"]

1. e4 {[%emt 0:00:01]} g6 {[%emt 0:11:18]} 2. d4 {[%emt 0:00:20]} Bg7 {[%emt 0:00:08]} 3. Nc3 {[%emt 0:00:04]} d6 {[%emt 0:00:06]} 4. Be3 {[%emt 0:00:07]} a6 {[%emt 0:00:05]} 5. Nf3 {[%emt 0:00:59]} b5 {[%emt 0:00:31]} 6. a3 {[%emt 0:00:16]} Nd7 {[%emt 0:00:45]} 7. a4 {[%emt 0:04:02]} b4 {[%emt 0:00:35]} 8. Nd5 {[%emt 0:00:11]} a5 {[%emt 0:01:00]} 9. Bc4 {[%emt 0:02:03]} Bb7 {[%emt 0:02:59]} 10. Ng5 {[%emt 0:02:41]} e6 {[%emt 0:02:47]} 11. Qf3 {[%emt 0:01:19]} Ngf6 {[%emt 0:01:06]} 12. Nf4 {[%emt 0:02:55]} Qe7 {[%emt 0:00:35]} 13. Bd3 {[%emt 0:14:42]} O-O {[%emt 0:03:06]} 14. c3 {[%emt 0:02:18]} e5 {[%emt 0:00:48]} 15. Ne2 {[%emt 0:08:16]} h6 {[%emt 0:00:17]} 16. Nh3 {[%emt 0:00:26]} d5 {[%emt 0:01:07]} 17. Bc2 {[%emt 0:04:58]} dxe4 {[%emt 0:03:04]} 18. Qg3 {[%emt 0:00:06]} Nh5 {[%emt 0:02:57]} 19. Qg4 {[%emt 0:00:10]} exd4 {[%emt 0:01:35]} 20. cxd4 {[%emt 0:00:26]} b3 {[%emt 0:09:48]} 21. Bd1 {[%emt 0:01:44]} Bc8 {[%emt 0:05:18]} 22. Nef4 {[%emt 0:02:59]} Ne5 {[%emt 0:02:01]} 23. Qe2 {[%emt 0:00:49]} Nxf4 {[%emt 0:00:51]} 24. Nxf4 {[%emt 0:00:21]} Ba6 {[%emt 0:00:13]} 25. Qd2 {[%emt 0:00:42]} Nc4 {[%emt 0:00:17]} 26. Qc3 {[%emt 0:00:25]} c5 {[%emt 0:04:49]} 27. Bxb3 {[%emt 0:01:33]} Nxe3 {[%emt 0:00:26]} 28. fxe3 {[%emt 0:00:37]} cxd4 {[%emt 0:01:03]} 29. exd4 {[%emt 0:00:18]} Rfc8 {[%emt 0:01:23]} 30. Nxg6 {[%emt 0:01:40]} Qd6 {[%emt 0:00:17]} 31. Qg3 {[%emt 0:01:39]} Qb4+ {[%emt 0:00:08]} 32. Kd1 {[%emt 0:00:39]} Qxd4+ {[%emt 0:00:07]} 33. Ke1 {[%emt 0:00:09]} Qb4+ {[%emt 0:00:03]} 34. Kd1 {[%emt 0:00:25]} Rd8+ {[%emt 0:00:07]} 35. Kc1 {[%emt 0:00:16]} Qd2+ {[%emt 0:00:06]} 36. Kb1 {[%emt 0:00:08]} Qxb2# {[%emt 0:00:06]} 0-1

[Event "Commonwealth CC-Open 2024"]
[Site "Malacca"]
[Date "2024.02.21"]
[Round "2.7"]
[White "Das, Sayantan"]
[Black "Milligan, Helen"]
[Result "1-0"]
[ECO "C84"]
[WhiteElo "2514"]
[BlackElo "1941"]
[Annotator "RC"]
[PlyCount "55"]
[EventDate "2024.02.21"]
[EventCountry "MAS"]
[SourceTitle "playchess.com"]
[Source "ChessBase"]
[SourceQuality "1"]
[TimeControl "5400+30"]

1. e4 e5 2. Nf3 Nc6 3. Bb5 a6 4. Ba4 Nf6 5. O-O Be7 6. d3 b5 7. Bb3 d6 8. Bd2 Bg4 9. c3 O-O 10. h3 Be6 11. Bc2 d5 12. a4 h6 13. Re1 dxe4 14. dxe4 Bd6 15. b4 Ne7 16. Na3 c6 17. c4 Qd7 18. cxb5 cxb5 19. axb5 axb5 20. Bd3 Rab8 21. Qe2 Ng6 22. Nxb5 Bxb4 23. Bxb4 Nf4 24. Qe3 Qxd3 25. Bxf8 Qxb5 26. Bd6 Re8 27. Nxe5 Ng6 {[%emt 1:20:39]} 28. Reb1 {[%emt 1:14:48]} 1-0

[Event "Commonwealth CC-Open 2024"]
[Site "Malacca"]
[Date "2024.02.21"]
[Round "2.8"]
[White "Sabri, Mohd Saprin"]
[Black "Iniyan, Pa"]
[Result "0-1"]
[ECO "D74"]
[WhiteElo "1922"]
[BlackElo "2515"]
[Annotator "RC"]
[PlyCount "64"]
[EventDate "2024.02.21"]
[EventCountry "MAS"]
[SourceTitle "playchess.com"]
[Source "ChessBase"]
[SourceQuality "1"]
[TimeControl "5400+30"]

1. Nf3 Nf6 2. c4 g6 3. g3 Bg7 4. Bg2 d5 5. cxd5 Nxd5 6. d4 c6 7. O-O Na6 8. Nc3 O-O 9. h3 Be6 10. Re1 h6 11. e4 Nb6 12. Kh2 Rc8 13. Bf1 Bc4 14. Bxc4 Nxc4 15. b3 Qa5 16. Qd3 Nd6 17. Bb2 c5 18. Nd5 Qd8 19. Qe2 cxd4 20. Nxd4 e6 21. Ne3 Nxe4 22. Red1 Qe7 23. Nc4 Nec5 24. Nb5 Bxb2 25. Qxb2 b6 26. Ne5 Nb4 27. Qd2 Ne4 28. Qf4 Qf6 29. Qxf6 Nxf6 30. Nxa7 Rc2 31. Kg1 Ra8 32. Nb5 {[%emt 1:44:10]} Rc5 {[%emt 1:38:49]} 0-1

[Event "Commonwealth CC-Open 2024"]
[Site "Malacca"]
[Date "2024.02.21"]
[Round "2.9"]
[White "Rindhiya V"]
[Black "Swapnil, S. Dhopade"]
[Result "1-0"]
[ECO "B48"]
[WhiteElo "1879"]
[BlackElo "2454"]
[Annotator "RC"]
[PlyCount "108"]
[EventDate "2024.02.21"]
[EventCountry "MAS"]
[SourceTitle "playchess.com"]
[Source "ChessBase"]
[SourceQuality "1"]
[TimeControl "5400+30"]

1. e4 c5 2. Nf3 e6 3. d4 cxd4 4. Nxd4 Nc6 5. Nc3 Qc7 6. Be3 a6 7. Qd2 Nf6 8. O-O-O Be7 9. f3 O-O 10. g4 b5 11. g5 Nh5 12. Nce2 Nxd4 13. Nxd4 f6 14. h4 Ng3 15. Bf4 Nxf1 16. Rdxf1 Qc4 17. Kb1 d6 18. gxf6 Bxf6 19. Nb3 e5 20. Bg5 h6 21. Be3 Be7 22. Na5 Qf7 23. f4 Be6 24. Ka1 exf4 25. Rxf4 Qe8 26. Rg1 Kh7 27. Bd4 g6 28. Rxf8 Qxf8 29. Qg2 Qg8 30. Nc6 Bxh4 31. Qh2 g5 32. Qxd6 Re8 33. Rf1 Kg6 34. Ne7+ Rxe7 35. Qxe7 Kh5 36. b3 Qg6 37. Rf6 Qxe4 38. Qe8+ Kg4 39. Qxe6+ Qxe6 40. Rxe6 h5 41. c4 bxc4 42. bxc4 Bg3 43. Be3 h4 44. Rg6 Kf3 45. Bxg5 h3 46. Be7 Be5+ 47. Kb1 h2 48. Rh6 Kg2 49. c5 Bf4 50. Rh5 h1=Q+ 51. Rxh1 Kxh1 52. Bd6 Be3 53. c6 Bb6 54. Kc2 {[%emt 1:57:30]} Kg2 {[%emt 1:41:15]} 1-0

[Event "Commonwealth CC-Open 2024"]
[Site "Malacca"]
[Date "2024.02.21"]
[Round "2.11"]
[White "Bhagyashree Patil"]
[Black "Mohammad Nubairshah Shaikh"]
[Result "1/2-1/2"]
[ECO "D02"]
[WhiteElo "1885"]
[BlackElo "2428"]
[Annotator "ChessBase"]
[PlyCount "160"]
[EventDate "2024.02.21"]
[EventCountry "MAS"]
[SourceTitle "playchess.com"]
[Source "ChessBase"]
[SourceQuality "1"]
[TimeControl "5400+30"]

1. d4 Nf6 2. Bf4 d5 3. Nf3 c5 4. e3 Nc6 5. Nbd2 cxd4 6. exd4 Qb6 7. Nb3 Bf5 8. Bd3 Bxd3 9. Qxd3 Rc8 10. c3 e6 11. O-O Be7 12. Qe2 O-O 13. Ne1 a5 14. Nd3 Qb5 15. Nd2 a4 16. a3 Nh5 17. Be3 Bd6 18. Rfe1 Nf6 19. Nb4 Qxe2 20. Rxe2 Ng4 21. Nf1 Na5 22. Nd3 Nxe3 23. Nxe3 f6 24. g3 Kf7 25. Kg2 g5 26. f4 gxf4 27. gxf4 Nc4 28. Kf3 Rg8 29. Rae1 Nxe3 30. Rxe3 Rce8 31. Nf2 f5 32. Nh3 h6 33. Rg1 Rxg1 34. Nxg1 Rg8 35. Re1 Ke7 36. Ne2 Kd7 37. Rg1 Rxg1 38. Nxg1 Kc6 39. Ke3 Kb5 40. Nf3 Bc7 41. Nd2 Bb8 42. Kf3 Bd6 43. Ke3 Kc6 44. Kf3 Kd7 45. Kg3 Be7 46. Kh3 Ke8 47. Kg3 Kf7 48. Kh3 Kg6 49. Kg3 Kh5 50. Nf3 Bd6 51. Nd2 Be7 52. Nf3 Bf6 53. Kh3 Kg6 54. Kg3 Kf7 55. Nd2 Ke8 56. Kh3 Kd7 57. Kg3 Kc6 58. Nf3 Kb5 59. Nd2 Bd8 60. Kf3 Bh4 61. Ke2 Be7 62. Kd3 Bd8 63. Ke2 Bh4 64. Nf3 Be7 65. Nd2 Kc6 66. Kd3 Kd7 67. Ke2 Ke8 68. Kf2 Bh4+ 69. Kg2 Kd7 70. Nf3 Be7 71. Nd2 Bf6 72. Kf3 Bh4 73. Ke2 Ke8 74. Nf3 Be7 75. Kf2 Bd6 76. Kg3 Kd7 77. Nd2 Kc6 78. Kf3 Be7 79. Ke2 Kb5 80. Kd3 {[%emt 1:59:41]} Bd6 {[%emt 2:06:33]} 1/2-1/2